fUSD/lending_fUSD_20241106
["ID","MTS","AMOUNT","RATE_DAILY","PERIOD"]
[341433396,1730879462701,-7375.28714702,0.00038,15]
[341433397,1730879462713,-715.98808608,0.00038,15]
[341433398,1730879462726,-399.0735,0.00038,15]
[341433399,1730879462738,-858.98932696,0.00038,15]
[341433400,1730879462750,-461.29597304,0.00038,15]
[341433401,1730879462763,-264526.28083542,0.00038,15]
[341433402,1730879462775,-11463.77266234,0.00038,15]
[341433403,1730879536107,500.0,0.000307,30]
[341433404,1730879539107,200.076,0.0003,2]
[341433405,1730879546423,500.0,0.000307,30]
[341433406,1730879547609,500.0,0.000307,30]
[341433407,1730879581279,300.0,0.00019725,2]
[341433408,1730879761231,300.0,0.00019725,2]
[341433409,1730879821294,300.0,0.00019725,2]
[341433411,1730879933848,150.0,0.00018123,2]
[341433412,1730879941490,300.0,0.00019725,2]
[341433413,1730880001401,300.0,0.00019725,2]
[341433414,1730880003743,500.0,0.0001726,2]
[341433415,1730880005850,500.0,0.0001726,2]
[341433416,1730880006360,224.74411306,0.0001726,2]
[341433417,1730880023803,155.93,0.00015342,2]
[341433419,1730880061412,300.0,0.00019725,2]
[341433420,1730880122621,300.0,0.00019725,2]
[341433421,1730880217784,150.0,0.00018123,2]
[341433422,1730880438115,-250.0,0.00021,2]
[341433423,1730880438137,-408.27994889,0.00021818,2]
[341433424,1730880438158,-151.23,0.00021918,2]
[341433425,1730880438184,-300.0,0.00023,2]
[341433426,1730880438207,-350.0,0.00025,2]
[341433427,1730880438229,-256.52,0.00026318,2]
[341433428,1730880438250,-269.9400392,0.00027,2]
[341433431,1730880453107,-130.0599608,0.00027,2]
[341433432,1730880453127,-1921.32968699,0.00028938,2]
[341433433,1730880523911,188.39,0.00015342,2]
[341433434,1730880550124,-3443.84031301,0.00028938,2]
[341433435,1730880550145,-150.99,0.00028938,2]
[341433436,1730880550165,-450.0,0.00029,2]
[341433437,1730880550184,-1049.69065753,0.00029,2]
[341433438,1730880550206,-151.0,0.0003,120]
[341433439,1730880550227,-564.242106,0.00030395,2]
[341433440,1730880550252,-155.93,0.00030548,2]
[341433441,1730880550271,-4357.88059485,0.0003078,2]
[341433442,1730880550293,-500.0,0.00031,2]
[341433443,1730880550312,-150.99,0.00031,2]
[341433444,1730880550330,-154.1,0.00031815,2]
[341433445,1730880550348,-200.0,0.00032748,2]
[341433446,1730880550368,-2817.91,0.00032763,2]
[341433447,1730880550387,-6100.0,0.00032807,61]
[341433448,1730880550409,-512.06,0.00032865,2]
[341433449,1730880550427,-274.76497483,0.00032877,2]
[341433450,1730880550447,-250.0,0.00032898,120]
[341433451,1730880550467,-227.47,0.00032902,2]
[341433452,1730880550487,-550.0,0.00033,2]
[341433453,1730880550507,-450.0,0.00033023,2]
[341433454,1730880550529,-22313.2,0.00033024,2]
[341433455,1730880550550,-154.1,0.0003307,2]
[341433456,1730880550572,-4674.56819378,0.00033073,2]
[341433457,1730880552281,-18761.42180622,0.00033073,2]
[341433458,1730880552301,-653.02,0.00033078,2]
[341433459,1730880552323,-640.0,0.00033262,2]
[341433460,1730880552344,-302.03,0.00033271,120]
[341433461,1730880552368,-150.0,0.00033274,2]
[341433462,1730880552389,-1012.44970118,0.00033289,2]
[341433463,1730880552416,-1244.84,0.0003329,2]
[341433464,1730880552437,-250.0,0.00033342,2]
[341433465,1730880552459,-500.0,0.00033467,2]
[341433466,1730880552479,-1068.66,0.00033529,2]
[341433467,1730880552499,-3198.56,0.00033533,2]
[341433468,1730880552521,-10654.47359882,0.00033555,2]
[341433469,1730880560096,-11658.72640118,0.00033555,2]
[341433470,1730880560116,-528.97,0.00033562,4]
[341433471,1730880560140,-973.6,0.00033578,2]
[341433472,1730880560162,-960.13,0.00033586,2]
[341433473,1730880560181,-244.01,0.00033686,2]
[341433474,1730880560203,-6452.58109882,0.0003369,2]
[341433475,1730880560229,-1573.11890118,0.0003369,2]
[341433476,1730880560249,-157.41,0.00033781,120]
[341433477,1730880560268,-684.54,0.00033782,2]
[341433478,1730880560287,-1169.66,0.00033809,120]
[341433479,1730880560307,-22305.33543882,0.00034086,2]
[341433480,1730880563096,-7.86456118,0.00034086,2]
[341433481,1730880563117,-365.56,0.00034108,2]
[341433482,1730880563137,-2567.72007882,0.00034125,2]
[341433483,1730880564168,-1264.76992118,0.00034125,2]
[341433484,1730880564188,-365.56,0.00034126,2]
[341433485,1730880564209,-365.56,0.00034143,2]
[341433486,1730880564228,-365.56,0.00034161,2]
[341433487,1730880564248,-365.56,0.00034179,2]
[341433488,1730880564266,-365.56,0.00034197,2]
[341433489,1730880564287,-200.0,0.000342,2]
[341433490,1730880564306,-365.56,0.00034215,2]
[341433491,1730880564324,-365.56,0.00034233,2]
[341433492,1730880564345,-365.56,0.00034251,2]
[341433493,1730880564366,-365.56,0.00034269,2]
[341433494,1730880564386,-365.56,0.00034287,2]
[341433495,1730880564410,-365.56,0.00034305,2]
[341433496,1730880564429,-365.56,0.00034323,2]
[341433497,1730880564448,-154.1,0.00034326,2]
[341433498,1730880564468,-365.56,0.00034341,2]
[341433499,1730880564487,-365.56,0.00034359,2]
[341433500,1730880564506,-365.56,0.00034377,2]
[341433501,1730880564528,-365.56,0.00034395,2]
[341433502,1730880564548,-365.56,0.00034413,2]
[341433503,1730880564568,-365.56,0.00034431,2]
[341433504,1730880564588,-365.56,0.00034449,2]
[341433507,1730880566230,200.0,0.00034286,7]
[341433508,1730880579860,924.92,0.00033667,2]
[341433509,1730880582501,284.0,0.0002,2]
[341433510,1730880629569,500.0,0.00034,2]
[341433524,1730880631450,-227.47,0.00034548,2]
[341433526,1730880631462,-500.0,0.00034615,7]
[341433528,1730880631471,-164.11315362,0.00034615,7]
[341433529,1730880631481,-22313.2,0.00034616,2]
[341433530,1730880631490,-600.0,0.00035,2]
[341433531,1730880631499,-200.076,0.00035112,2]
[341433532,1730880631509,-812.55539425,0.00035137,2]
[341433533,1730880631519,-22313.2,0.00035147,2]
[341433534,1730880631528,-608.978,0.00035428,42]
[341433535,1730880631538,-250.0,0.0003555,2]
[341433536,1730880631547,-221.4,0.00035567,120]
[341433537,1730880631557,-154.1,0.00035582,2]
[341433538,1730880631566,-342.72,0.00035583,2]
[341433539,1730880631576,-22313.2,0.00035677,2]
[341433540,1730880631585,-302.03,0.00035855,120]
[341433541,1730880631594,-1717.0,0.000359,2]
[341433542,1730880631604,-924.92,0.00035931,2]
[341433543,1730880631613,-4860.00074475,0.00036075,15]
[341433544,1730880631623,-360.0,0.00036084,2]
[341433545,1730880631632,-150.46,0.00036084,2]
[341433546,1730880631641,-180.0,0.00036118,2]
[341433547,1730880631651,-462.574,0.00036174,2]
[341433548,1730880631660,-1252.0,0.00036174,2]
[341433549,1730880631668,-150.572,0.00036174,2]
[341433550,1730880631677,-1904.89748929,0.00036174,2]
[341433551,1730880631692,-83.10251071,0.00036174,2]
[341433552,1730880631703,-558.0,0.00036174,2]
[341433553,1730880631712,-1795.0,0.00036174,2]
[341433554,1730880631721,-955.271,0.00036174,2]
[341433555,1730880631730,-215.25264699,0.00036174,2]
[341433556,1730880631744,-1065.29435301,0.00036174,2]
[341433557,1730880631753,-920.0,0.00036174,2]
[341433558,1730880631762,-2907.0,0.00036174,2]
[341433559,1730880631771,-960.609,0.00036174,2]
[341433560,1730880631780,-528.05,0.00036183,10]
[341433561,1730880631789,-227.47,0.00036193,2]
[341433562,1730880631798,-440.04,0.00036198,10]
[341433563,1730880631807,-11289.03664699,0.00036208,2]
[341433564,1730880631818,-5478.21846633,0.00036208,2]
[341433565,1730880631834,-968.36159528,0.00036208,2]
[341433567,1730880631845,-4577.5832914,0.00036208,2]
[341433568,1730880631854,-4860.0007447,0.00036278,15]
[341433569,1730880631864,-4860.0007447,0.00036481,15]
[341433570,1730880631873,-151.0,0.00036658,120]
[341433571,1730880631882,-4860.0007447,0.00036683,15]
[341433573,1730880631891,-159.2,0.00036722,120]
[341433575,1730880631900,-2500.0,0.00036738,2]
[341433577,1730880631909,-22313.2,0.00036739,2]
[341433579,1730880631919,-154.1,0.00036838,2]
[341433580,1730880631928,-4860.0007447,0.00036886,15]
[341433582,1730880631939,-5224.08500403,0.00037,2]
[341433584,1730880631949,-337.8950082,0.00037,3]
[341433586,1730880631959,-650.0,0.00037,2]
[341433589,1730880631969,-405.60543822,0.00037,10]
[341433591,1730880631979,-4860.0007447,0.00037089,15]
[341433593,1730880631988,-4860.0007447,0.00037292,15]
[341433595,1730880631997,-166.92,0.00037313,2]
[341433597,1730880632006,-342.72,0.00037362,2]
[341433598,1730880632015,-163.35,0.00037388,2]
[341433599,1730880632024,-640.0,0.00037419,2]
[341433600,1730880632033,-4860.0007447,0.00037494,15]
[341433601,1730880632042,-1725.1642,0.00037579,2]
[341433602,1730880632051,-322.37957111,0.0003758,2]
[341433603,1730880632060,-160.53220447,0.0003758,2]
[341433604,1730880632069,-431.3956,0.0003762,2]
[341433605,1730880632079,-10692.45055255,0.0003763,2]
[341433606,1730880632088,-22223.54974815,0.0003763,2]
[341433607,1730880632098,-647.09341,0.0003764,2]
[341433608,1730880632107,-13610.0,0.00037647,2]
[341433609,1730880632117,-155.164,0.00037647,2]
[341433610,1730880632127,-1157.0,0.00037647,2]
[341433611,1730880632137,-5920.0,0.00037647,2]
[341433613,1730880632146,-1162.621,0.00037647,2]
[341433615,1730880632154,-153.0,0.00037649,2]
[341433617,1730880632164,-153.0,0.00037649,2]
[341433619,1730880632173,-153.0,0.00037649,2]
[341433621,1730880632182,-153.0,0.00037649,2]
[341433623,1730880632192,-160.53220446,0.0003766,2]
[341433625,1730880632202,-474.0,0.00037668,3]
[341433627,1730880632211,-152.65629685,0.0003767,2]
[341433629,1730880632223,-6846.64706054,0.0003768,2]
[341433631,1730880632234,-907.18734777,0.0003768,2]
[341433633,1730880632251,-4584.94313,0.0003768,2]
[341433635,1730880632263,-899.999998,0.0003768,2]
[341433638,1730880632274,-8484.17634025,0.0003768,2]
[341433640,1730880632285,-6475.96562991,0.0003768,2]
[341433642,1730880632300,-2399.99999998,0.0003768,2]
[341433644,1730880632312,-126080.01114848,0.0003768,2]
[341433674,1730880632589,-500.0,0.00037679,15]
[341433676,1730880632599,-8699.576754,0.0003768,2]
[341433679,1730880632617,-428.83873521,0.00037679,15]
[341433681,1730880632626,-238.38228407,0.0003768,2]
[341433683,1730880632638,-1793.00267782,0.0003768,2]
[341433685,1730880632649,-259.8565,0.0003768,2]
[341433734,1730880637510,-537.1,0.0003767,10]
[341433735,1730880637519,-186.38265669,0.0003767,3]
[341433736,1730880637530,-82.89734331,0.0003767,3]
[341433737,1730880637539,-161.36039359,0.00037673,5]
[341433738,1730880637548,-396.05670425,0.00037673,2]
[341433739,1730880637617,-103.94329575,0.00037673,2]
[341433740,1730880637627,-422.50944145,0.0003768,2]
[341433741,1730880637654,-1237.86360084,0.0003768,2]
[341433742,1730880637778,-70704.24807423,0.0003768,2]
[341433743,1730880637788,-177704.06129564,0.0003768,2]
[341433744,1730880637797,-16488.27732756,0.0003768,2]
[341433745,1730880637806,-4860.0007447,0.00037697,15]
[341433746,1730880637815,-150.52459608,0.00037708,2]
[341433747,1730880637824,-164.16627159,0.00037708,11]
[341433748,1730880637834,-420.35743639,0.00037719,2]
[341433749,1730880637843,-150.52459603,0.0003774,2]
[341433750,1730880637852,-160.53220446,0.0003774,2]
[341433751,1730880637862,-150.52459603,0.00037772,2]
[341433752,1730880637871,-5299.144011,0.000378,2]
[341433753,1730880637880,-5291.7622,0.000378,2]
[341433754,1730880637889,-150.52459603,0.00037804,2]
[341433755,1730880637898,-322.37957111,0.00037805,2]
[341433756,1730880637907,-175.44404374,0.00037808,14]
[341433757,1730880637916,-500.0,0.00037808,14]
[341433758,1730880637925,-500.0,0.00037808,14]
[341433759,1730880637935,-500.0,0.00037808,14]
[341433760,1730880637946,-529.69135323,0.00037808,14]
[341433761,1730880637955,-500.0,0.00037808,14]
[341433763,1730880637964,-500.0,0.00037808,14]
[341433765,1730880637973,-500.0,0.00037808,14]
[341433767,1730880637982,-500.0,0.00037808,14]
[341433769,1730880637991,-513.00683975,0.00037808,14]
[341433771,1730880638000,-530.68382847,0.00037808,14]
[341433773,1730880638012,-500.0,0.00037808,14]
[341433775,1730880638022,-500.0,0.00037808,14]
[341433777,1730880638035,-500.0,0.00037808,14]
[341433779,1730880638046,-500.0,0.00037808,14]
[341433781,1730880638056,-500.0,0.00037808,14]
[341433783,1730880638065,-500.0,0.00037808,14]
[341433785,1730880638075,-500.0,0.00037808,14]
[341433787,1730880638085,-500.0,0.00037808,14]
[341433789,1730880638095,-500.0,0.00037808,14]
[341433791,1730880638104,-463.56525046,0.00037808,14]
[341433793,1730880638113,-500.0,0.00037808,14]
[341433795,1730880638122,-500.0,0.00037808,14]
[341433797,1730880638131,-500.0,0.00037808,14]
[341433799,1730880638140,-219.71443682,0.00037808,14]
[341433801,1730880638149,-500.0,0.00037808,14]
[341433803,1730880638158,-500.0,0.00037808,14]
[341433805,1730880638167,-500.0,0.00037808,14]
[341433807,1730880638175,-500.0,0.00037808,14]
[341433809,1730880638185,-500.0,0.00037808,14]
[341433811,1730880638197,-500.0,0.00037808,14]
[341433813,1730880638206,-500.0,0.00037808,14]
[341433815,1730880638216,-500.0,0.00037808,14]
[341433817,1730880638228,-500.0,0.00037808,14]
[341433819,1730880638237,-155.71922756,0.00037808,14]
[341433821,1730880638246,-500.0,0.00037808,14]
[341433823,1730880638255,-263.2830669,0.00037808,14]
[341433825,1730880638264,-500.0,0.00037808,14]
[341433827,1730880638272,-500.0,0.00037808,14]
[341433829,1730880638282,-500.0,0.00037808,14]
[341433831,1730880638291,-500.0,0.00037808,14]
[341433833,1730880638301,-528.96946466,0.00037808,14]
[341433835,1730880638310,-500.0,0.00037808,14]
[341433837,1730880638319,-500.0,0.00037808,14]
[341433839,1730880638328,-500.0,0.00037808,14]
[341433841,1730880638337,-516.48488808,0.00037808,14]
[341433843,1730880638351,-500.0,0.00037808,14]
[341433845,1730880638362,-500.0,0.00037808,14]
[341433847,1730880638371,-500.0,0.00037808,14]
[341433849,1730880638380,-500.0,0.00037808,14]
[341433851,1730880638391,-551.72585837,0.00037808,14]
[341433853,1730880638400,-500.0,0.00037808,14]
[341433855,1730880638409,-500.0,0.00037808,14]
[341433857,1730880638418,-500.0,0.00037808,14]
[341433858,1730880638427,-500.0,0.00037808,14]
[341433860,1730880638436,-500.0,0.00037808,14]
[341433862,1730880638446,-502.80009618,0.00037808,14]
[341433864,1730880638455,-500.0,0.00037808,14]
[341433866,1730880638464,-543.71581445,0.00037808,14]
[341433868,1730880638473,-500.0,0.00037808,14]
[341433870,1730880638482,-500.0,0.00037808,14]
[341433872,1730880638491,-167.98589199,0.00037808,14]
[341433874,1730880638503,-505.85129475,0.00037808,14]
[341433876,1730880638512,-500.0,0.00037808,14]
[341433878,1730880638522,-500.0,0.00037808,14]
[341433880,1730880638530,-500.0,0.00037808,14]
[341433882,1730880638539,-500.0,0.00037808,14]
[341433884,1730880638548,-500.0,0.00037808,14]
[341433886,1730880638558,-500.0,0.00037808,14]
[341433888,1730880638567,-500.0,0.00037808,14]
[341433890,1730880638575,-500.0,0.00037808,14]
[341433892,1730880638584,-500.0,0.00037808,14]
[341433893,1730880638594,-500.0,0.00037808,14]
[341433894,1730880638603,-500.0,0.00037808,14]
[341433895,1730880638612,-506.36614285,0.00037808,14]
[341433896,1730880638621,-500.0,0.00037808,14]
[341433897,1730880638629,-500.0,0.00037808,14]
[341433898,1730880638638,-500.0,0.00037808,14]
[341433899,1730880638647,-500.0,0.00037808,14]
[341433900,1730880638656,-507.72465333,0.00037808,14]
[341433901,1730880638665,-500.0,0.00037808,14]
[341433902,1730880638675,-500.0,0.00037808,14]
[341433903,1730880638684,-505.7560912,0.00037808,14]
[341433904,1730880638695,-500.0,0.00037808,14]
[341433905,1730880638704,-586.372824,0.00037808,14]
[341433906,1730880638713,-500.0,0.00037808,14]
[341433907,1730880638722,-296.40721421,0.00037808,14]
[341433908,1730880638731,-500.0,0.00037808,14]
[341433909,1730880638740,-612.93304315,0.00037808,14]
[341433910,1730880638750,-500.0,0.00037808,14]
[341433911,1730880638759,-500.0,0.00037808,14]
[341433912,1730880638768,-500.0,0.00037808,14]
[341433913,1730880638777,-500.0,0.00037808,14]
[341433914,1730880638786,-500.0,0.00037808,14]
[341433915,1730880638794,-355.78050455,0.00037808,14]
[341433916,1730880638803,-500.0,0.00037808,14]
[341433917,1730880638813,-500.0,0.00037808,14]
[341433918,1730880638822,-500.0,0.00037808,14]
[341433919,1730880638831,-500.0,0.00037808,14]
[341433920,1730880638840,-500.0,0.00037808,14]
[341433921,1730880638849,-500.0,0.00037808,14]
[341433922,1730880638858,-500.0,0.00037808,14]
[341433923,1730880638866,-500.0,0.00037808,14]
[341433924,1730880638875,-500.0,0.00037808,14]
[341433925,1730880638884,-500.0,0.00037808,14]
[341433926,1730880638893,-500.0,0.00037808,14]
[341433927,1730880638902,-500.0,0.00037808,14]
[341433928,1730880638911,-500.0,0.00037808,14]
[341433929,1730880638919,-500.0,0.00037808,14]
[341433930,1730880638928,-570.41244537,0.00037808,14]
[341433931,1730880638937,-503.6910277,0.00037808,14]
[341433932,1730880638947,-500.0,0.00037808,14]
[341433933,1730880638957,-500.0,0.00037808,14]
[341433934,1730880638965,-500.0,0.00037808,14]
[341433935,1730880638974,-500.0,0.00037808,14]
[341433936,1730880638984,-500.0,0.00037808,14]
[341433937,1730880639001,-500.0,0.00037808,14]
[341433938,1730880639013,-500.0,0.00037808,14]
[341433939,1730880639022,-500.0,0.00037808,14]
[341433940,1730880639031,-284.94507928,0.00037808,14]
[341433941,1730880639040,-500.0,0.00037808,14]
[341433942,1730880639048,-500.0,0.00037808,14]
[341433943,1730880639058,-500.0,0.00037808,14]
[341433944,1730880639067,-375.04132152,0.00037808,14]
[341433945,1730880639075,-500.0,0.00037808,14]
[341433946,1730880639084,-500.0,0.00037808,14]
[341433947,1730880639093,-500.0,0.00037808,14]
[341433948,1730880639102,-500.0,0.00037808,14]
[341433949,1730880639111,-500.0,0.00037808,14]
[341433950,1730880639120,-500.0,0.00037808,14]
[341433951,1730880639129,-500.0,0.00037808,14]
[341433952,1730880639138,-569.23473062,0.00037808,14]
[341433953,1730880639147,-500.0,0.00037808,14]
[341433954,1730880639156,-500.0,0.00037808,14]
[341433955,1730880639165,-500.0,0.00037808,14]
[341433956,1730880639174,-500.0,0.00037808,14]
[341433957,1730880639183,-500.0,0.00037808,14]
[341433958,1730880639197,-500.0,0.00037808,14]
[341433959,1730880639207,-500.0,0.00037808,14]
[341433960,1730880639217,-500.0,0.00037808,14]
[341433961,1730880639228,-500.0,0.00037808,14]
[341433963,1730880639238,-507.39195758,0.00037808,14]
[341433965,1730880639246,-503.57,0.00037808,7]
[341433967,1730880639255,-500.0,0.00037808,14]
[341433968,1730880639265,-500.0,0.00037808,14]
[341433969,1730880639274,-160.80440998,0.00037808,14]
[341433970,1730880639284,-500.0,0.00037808,14]
[341433972,1730880639295,-500.0,0.00037808,14]
[341433973,1730880639304,-500.0,0.00037808,2]
[341433975,1730880639313,-300.20928231,0.00037808,14]
[341433976,1730880639322,-500.0,0.00037808,14]
[341433977,1730880639331,-500.0,0.00037808,14]
[341433978,1730880639340,-500.0,0.00037808,14]
[341433979,1730880639349,-301.62504116,0.00037808,14]
[341433980,1730880639358,-500.0,0.00037808,14]
[341433981,1730880639367,-500.0,0.00037808,14]
[341433982,1730880639376,-272.4847565,0.00037808,14]
[341433984,1730880639386,-500.0,0.00037808,14]
[341433985,1730880639396,-500.0,0.00037808,14]
[341433986,1730880639404,-500.0,0.00037808,14]
[341433987,1730880639414,-500.0,0.00037808,14]
[341433988,1730880639422,-539.39022056,0.00037808,14]
[341433989,1730880639431,-500.0,0.00037808,14]
[341433990,1730880639443,-500.0,0.00037808,14]
[341433991,1730880639452,-500.0,0.00037808,14]
[341433992,1730880639462,-500.0,0.00037808,14]
[341433993,1730880639471,-500.0,0.00037808,14]
[341433994,1730880639480,-500.0,0.00037808,14]
[341433995,1730880639489,-500.0,0.00037808,14]
[341433996,1730880639498,-500.0,0.00037808,14]
[341433997,1730880639508,-237.32,0.00037808,14]
[341433998,1730880639517,-500.0,0.00037808,14]
[341433999,1730880639526,-500.0,0.00037808,14]
[341434000,1730880639535,-500.0,0.00037808,14]
[341434001,1730880639544,-300.0,0.00037808,14]
[341434002,1730880639553,-300.0,0.00037808,14]
[341434003,1730880639563,-500.0,0.00037808,14]
[341434004,1730880639572,-504.87321768,0.00037808,14]
[341434005,1730880639581,-500.0,0.00037808,14]
[341434006,1730880639589,-500.0,0.00037808,14]
[341434007,1730880639598,-500.0,0.00037808,14]
[341434008,1730880639607,-500.0,0.00037808,14]
[341434009,1730880639617,-500.0,0.00037808,14]
[341434010,1730880639625,-500.0,0.00037808,14]
[341434011,1730880639634,-500.0,0.00037808,14]
[341434012,1730880639643,-500.0,0.00037808,14]
[341434013,1730880639652,-500.0,0.00037808,14]
[341434014,1730880639662,-500.0,0.00037808,14]
[341434015,1730880639671,-500.0,0.00037808,14]
[341434016,1730880639680,-500.0,0.00037808,14]
[341434017,1730880639689,-500.0,0.00037808,14]
[341434018,1730880639703,-500.0,0.00037808,14]
[341434019,1730880639712,-500.0,0.00037808,14]
[341434020,1730880639721,-500.0,0.00037808,14]
[341434021,1730880639730,-500.0,0.00037808,14]
[341434022,1730880639739,-500.0,0.00037808,14]
[341434023,1730880639748,-500.0,0.00037808,14]
[341434024,1730880639757,-500.0,0.00037808,14]
[341434025,1730880639767,-500.0,0.00037808,14]
[341434026,1730880639776,-500.0,0.00037808,14]
[341434027,1730880639785,-310.30609092,0.00037808,14]
[341434028,1730880639795,-500.0,0.00037808,14]
[341434029,1730880639810,-500.0,0.00037808,14]
[341434030,1730880639819,-500.0,0.00037808,14]
[341434031,1730880639827,-500.0,0.00037808,14]
[341434032,1730880639836,-500.0,0.00037808,14]
[341434033,1730880639846,-500.0,0.00037808,14]
[341434034,1730880639855,-500.0,0.00037808,14]
[341434035,1730880639864,-500.0,0.00037808,14]
[341434036,1730880639873,-496.70062344,0.00037808,14]
[341434037,1730880639882,-500.0,0.00037808,14]
[341434038,1730880639891,-503.38867488,0.00037808,14]
[341434039,1730880639900,-500.0,0.00037808,14]
[341434040,1730880639915,-502.53080087,0.00037808,14]
[341434041,1730880639925,-500.0,0.00037808,14]
[341434042,1730880639933,-500.0,0.00037808,14]
[341434043,1730880639946,-500.0,0.00037808,14]
[341434044,1730880639955,-245.02659996,0.00037808,14]
[341434045,1730880639963,-515.60612151,0.00037808,14]
[341434046,1730880639972,-500.0,0.00037808,14]
[341434047,1730880639981,-500.0,0.00037808,14]
[341434048,1730880639989,-500.0,0.00037808,14]
[341434049,1730880639998,-500.0,0.00037808,14]
[341434050,1730880640007,-258.40514346,0.00037808,14]
[341434051,1730880640016,-502.42199952,0.00037808,14]
[341434052,1730880640025,-500.0,0.00037808,14]
[341434053,1730880640034,-500.0,0.00037808,14]
[341434054,1730880640044,-500.0,0.00037808,14]
[341434055,1730880640052,-504.86282479,0.00037808,14]
[341434056,1730880640062,-519.62206891,0.00037808,14]
[341434057,1730880640071,-416.32913689,0.00037808,14]
[341434058,1730880640080,-500.0,0.00037808,14]
[341434059,1730880640088,-500.0,0.00037808,14]
[341434060,1730880640098,-511.69767628,0.00037808,14]
[341434061,1730880640107,-503.52787964,0.00037808,14]
[341434062,1730880640116,-505.55539681,0.00037808,14]
[341434063,1730880640125,-500.0,0.00037808,14]
[341434064,1730880640133,-500.0,0.00037808,14]
[341434065,1730880640142,-500.0,0.00037808,14]
[341434066,1730880640151,-533.92240709,0.00037808,14]
[341434067,1730880640160,-500.0,0.00037808,14]
[341434068,1730880640169,-500.0,0.00037808,14]
[341434069,1730880640179,-504.29368049,0.00037808,14]
[341434070,1730880640188,-508.91410646,0.00037808,14]
[341434071,1730880640201,-503.22166948,0.00037808,14]
[341434072,1730880640211,-636.33,0.00037808,14]
[341434073,1730880640223,-500.0,0.00037808,14]
[341434074,1730880640232,-500.0,0.00037808,14]
[341434075,1730880640241,-512.8332366,0.00037808,14]
[341434076,1730880640250,-500.0,0.00037808,14]
[341434077,1730880640259,-517.80563638,0.00037808,14]
[341434078,1730880640269,-500.0,0.00037808,14]
[341434079,1730880640278,-500.0,0.00037808,14]
[341434080,1730880640286,-500.0,0.00037808,14]
[341434081,1730880640296,-564.66381408,0.00037808,14]
[341434082,1730880640305,-585.66202995,0.00037808,14]
[341434083,1730880640314,-500.0,0.00037808,14]
[341434084,1730880640323,-500.0,0.00037808,14]
[341434085,1730880640332,-502.18526261,0.00037808,14]
[341434086,1730880640341,-604.30870314,0.00037808,14]
[341434087,1730880640350,-500.0,0.00037808,14]
[341434088,1730880640359,-500.0,0.00037808,14]
[341434089,1730880640368,-501.16768254,0.00037808,14]
[341434090,1730880640378,-500.0,0.00037808,14]
[341434091,1730880640387,-500.0,0.00037808,14]
[341434092,1730880640396,-521.15794477,0.00037808,14]
[341434093,1730880640405,-543.44577468,0.00037808,14]
[341434094,1730880640414,-500.0,0.00037808,14]
[341434095,1730880640424,-500.0,0.00037808,14]
[341434096,1730880640433,-648.2,0.00037808,14]
[341434097,1730880640442,-502.99752724,0.00037808,14]
[341434098,1730880640451,-500.0,0.00037808,14]
[341434099,1730880640460,-524.18698878,0.00037808,14]
[341434100,1730880640469,-500.0,0.00037808,14]
[341434101,1730880640675,-500.0,0.00037808,14]